[Event "*** SCC Grand Prix: Titled Tuesday Blitz"]
[Site "Chess.com"]
[Date "2020.08.04"]
[Round "7"]
[White "ellatambien"]
[Black "onnoelgersma"]
[Result "0-1"]
[WhiteElo "2329"]
[BlackElo "2456"]
[TimeControl "180+1"]
[EndTime "15:00:29 PDT"]
[Termination "onnoelgersma won on time"]

1. c4 {[%clk 0:03:00.9]} 1... e6 {[%clk 0:02:58.9]} 2. Nf3 {[%clk 0:02:59.7]}
2... d5 {[%clk 0:02:59.5]} 3. b3 {[%clk 0:02:59.6]} 3... Nf6 {[%clk 0:03:00]} 4.
Bb2 {[%clk 0:02:59.3]} 4... c5 {[%clk 0:03:00.6]} 5. e3 {[%clk 0:02:59]} 5...
Nc6 {[%clk 0:03:00.6]} 6. g3 {[%clk 0:02:57.9]} 6... d4 {[%clk 0:02:59.2]} 7.
exd4 {[%clk 0:02:57.1]} 7... cxd4 {[%clk 0:03:00.1]} 8. Bg2 {[%clk 0:02:56.7]}
8... Be7 {[%clk 0:02:58.5]} 9. O-O {[%clk 0:02:56.6]} 9... O-O {[%clk 0:02:59]}
10. Re1 {[%clk 0:02:56.6]} 10... Re8 {[%clk 0:02:56]} 11. d3 {[%clk 0:02:52.4]}
11... Bc5 {[%clk 0:02:51.2]} 12. Ne5 {[%clk 0:02:48.2]} 12... Nxe5 {[%clk
0:02:50.9]} 13. Rxe5 {[%clk 0:02:48]} 13... Bd6 {[%clk 0:02:51.4]} 14. Re1
{[%clk 0:02:44.1]} 14... e5 {[%clk 0:02:51.6]} 15. Nd2 {[%clk 0:02:44.1]} 15...
a5 {[%clk 0:02:50.8]} 16. a3 {[%clk 0:02:43]} 16... Qb6 {[%clk 0:02:46.7]} 17.
Rb1 {[%clk 0:02:37.1]} 17... Bf5 {[%clk 0:02:46.3]} 18. Ne4 {[%clk 0:02:34.5]}
18... Nxe4 {[%clk 0:02:46.2]} 19. Bxe4 {[%clk 0:02:35]} 19... Bxe4 {[%clk
0:02:46.6]} 20. Rxe4 {[%clk 0:02:35.5]} 20... f5 {[%clk 0:02:47]} 21. Re1 {[%clk
0:02:35.5]} 21... Qc6 {[%clk 0:02:46.6]} 22. Bc1 {[%clk 0:02:32]} 22... b5
{[%clk 0:02:44.2]} 23. g4 {[%clk 0:01:47.7]} 23... e4 {[%clk 0:02:24.7]} 24.
gxf5 {[%clk 0:01:41.2]} 24... exd3 {[%clk 0:02:23.5]} 25. Bg5 {[%clk 0:01:08.7]}
25... bxc4 {[%clk 0:02:18.1]} 26. bxc4 {[%clk 0:01:07.5]} 26... Qxc4 {[%clk
0:02:18.7]} 27. Qg4 {[%clk 0:01:00.9]} 27... Rxe1+ {[%clk 0:01:43.3]} 28. Rxe1
{[%clk 0:00:58.9]} 28... Bxa3 {[%clk 0:01:27.6]} 29. Bf6 {[%clk 0:00:28.1]}
29... Qf7 {[%clk 0:01:17.6]} 30. Bxd4 {[%clk 0:00:27.6]} 30... Rd8 {[%clk
0:01:09.2]} 31. Bc3 {[%clk 0:00:20.5]} 31... Bb4 {[%clk 0:00:49.2]} 32. Bxb4
{[%clk 0:00:19.5]} 32... axb4 {[%clk 0:00:50.1]} 33. Qxb4 {[%clk 0:00:19.5]}
33... Qxf5 {[%clk 0:00:47.2]} 0-1

[Event "*** SCC Grand Prix: Titled Tuesday Blitz"]
[Site "Chess.com"]
[Date "2020.08.04"]
[Round "7"]
[White "chalowey97"]
[Black "DrMamaliga"]
[Result "0-1"]
[WhiteElo "2138"]
[BlackElo "2167"]
[TimeControl "180+1"]
[EndTime "15:00:32 PDT"]
[Termination "DrMamaliga won on time"]

1. d4 {[%clk 0:03:00.4]} 1... Nf6 {[%clk 0:02:59.7]} 2. Nf3 {[%clk 0:02:59.4]}
2... c5 {[%clk 0:02:59.2]} 3. d5 {[%clk 0:02:59.3]} 3... e6 {[%clk 0:02:59.1]}
4. c4 {[%clk 0:02:59.9]} 4... exd5 {[%clk 0:02:55.3]} 5. cxd5 {[%clk 0:03:00.8]}
5... d6 {[%clk 0:02:55.3]} 6. Nc3 {[%clk 0:03:01.1]} 6... g6 {[%clk 0:02:55.7]}
7. Bg5 {[%clk 0:03:00.7]} 7... Bg7 {[%clk 0:02:55.8]} 8. e3 {[%clk 0:02:59.2]}
8... O-O {[%clk 0:02:54.4]} 9. h3 {[%clk 0:02:57.2]} 9... h6 {[%clk 0:02:54.2]}
10. Bf4 {[%clk 0:02:57.1]} 10... Re8 {[%clk 0:02:51]} 11. Be2 {[%clk 0:02:56.9]}
11... Ne4 {[%clk 0:02:37.5]} 12. Qc2 {[%clk 0:02:30.4]} 12... Qa5 {[%clk
0:02:36.5]} 13. Rc1 {[%clk 0:02:24.7]} 13... Bf5 {[%clk 0:02:35.8]} 14. Bd3
{[%clk 0:02:12.3]} 14... Nxc3 {[%clk 0:02:19.8]} 15. bxc3 {[%clk 0:02:07.2]}
15... Bxd3 {[%clk 0:02:19.3]} 16. Qxd3 {[%clk 0:02:07.3]} 16... Qxa2 {[%clk
0:02:17]} 17. O-O {[%clk 0:01:49.4]} 17... Rd8 {[%clk 0:02:12]} 18. Bxh6 {[%clk
0:01:00.2]} 18... c4 {[%clk 0:02:05]} 19. Qe4 {[%clk 0:00:41.1]} 19... Bxh6
{[%clk 0:02:00.1]} 20. Ra1 {[%clk 0:00:30.1]} 20... Qb3 {[%clk 0:01:55.8]} 21.
Qe7 {[%clk 0:00:20.7]} 21... Na6 {[%clk 0:01:39.6]} 22. Rab1 {[%clk 0:00:10.2]}
22... Qxc3 {[%clk 0:01:37.6]} 23. Nd4 {[%clk 0:00:09.9]} 23... Nc5 {[%clk
0:01:30.9]} 24. h4 {[%clk 0:00:03.7]} 24... Re8 {[%clk 0:01:27.5]} 25. Qc7
{[%clk 0:00:03]} 25... Bxe3 {[%clk 0:01:26.1]} 26. h5 {[%clk 0:00:01.7]} 26...
Qxd4 {[%clk 0:01:21.6]} 27. hxg6 {[%clk 0:00:02.3]} 27... fxg6 {[%clk
0:01:21.3]} 28. Qxd6 {[%clk 0:00:02.8]} 28... Bxf2+ {[%clk 0:01:19.5]} 29. Rxf2
{[%clk 0:00:02.5]} 29... Qxf2+ {[%clk 0:01:20.1]} 30. Kxf2 {[%clk 0:00:02]}
30... Ne4+ {[%clk 0:01:21]} 31. Kf3 {[%clk 0:00:02.3]} 31... Nxd6 {[%clk
0:01:21.9]} 32. Rh1 {[%clk 0:00:02]} 32... Kg7 {[%clk 0:01:21.5]} 33. Kg4 {[%clk
0:00:02.9]} 33... Re4+ {[%clk 0:01:20.3]} 34. Kg3 {[%clk 0:00:02.7]} 34... Rf8
{[%clk 0:01:19.5]} 35. Rb1 {[%clk 0:00:03.1]} 35... b5 {[%clk 0:01:19.1]} 36.
Kh3 {[%clk 0:00:03.4]} 36... Re3+ {[%clk 0:01:18.4]} 37. Kh2 {[%clk 0:00:02.7]}
37... a5 {[%clk 0:01:18.9]} 38. Kg1 {[%clk 0:00:02.6]} 38... a4 {[%clk
0:01:18.8]} 39. Kh2 {[%clk 0:00:03.1]} 39... a3 {[%clk 0:01:19]} 40. g3 {[%clk
0:00:03.7]} 40... a2 {[%clk 0:01:18]} 41. Ra1 {[%clk 0:00:03.5]} 41... Rf2+
{[%clk 0:01:16.3]} 42. Kh3 {[%clk 0:00:03.8]} 42... Nf5 {[%clk 0:01:15.5]} 0-1

[Event "*** SCC Grand Prix: Titled Tuesday Blitz"]
[Site "Chess.com"]
[Date "2020.08.04"]
[Round "7"]
[White "Char_dasha"]
[Black "davidkalashian"]
[Result "1-0"]
[WhiteElo "2430"]
[BlackElo "2557"]
[TimeControl "180+1"]
[EndTime "15:00:34 PDT"]
[Termination "Char_dasha won by resignation"]

1. e4 {[%clk 0:02:59.5]} 1... c5 {[%clk 0:02:57.3]} 2. Nf3 {[%clk 0:02:58.7]}
2... a6 {[%clk 0:02:56.5]} 3. c3 {[%clk 0:02:56.7]} 3... Nf6 {[%clk 0:02:55.9]}
4. e5 {[%clk 0:02:56.7]} 4... Nd5 {[%clk 0:02:56.4]} 5. d4 {[%clk 0:02:40.8]}
5... cxd4 {[%clk 0:02:57.3]} 6. Qxd4 {[%clk 0:02:36.9]} 6... e6 {[%clk
0:02:56.9]} 7. Bd3 {[%clk 0:02:36.8]} 7... Nc6 {[%clk 0:02:54.6]} 8. Qe4 {[%clk
0:02:36.9]} 8... f5 {[%clk 0:02:52.5]} 9. exf6 {[%clk 0:02:27.2]} 9... Nxf6
{[%clk 0:02:52.7]} 10. Qe2 {[%clk 0:02:27.3]} 10... g6 {[%clk 0:02:33.3]} 11. h4
{[%clk 0:02:24.6]} 11... Bg7 {[%clk 0:02:28.3]} 12. Bg5 {[%clk 0:02:23.3]} 12...
Qa5 {[%clk 0:02:05.8]} 13. Nbd2 {[%clk 0:02:22.2]} 13... Ne7 {[%clk 0:01:24.1]}
14. Nc4 {[%clk 0:02:06.1]} 14... Qc7 {[%clk 0:01:22]} 15. O-O-O {[%clk
0:01:58.1]} 15... b5 {[%clk 0:01:21.4]} 16. Nd6+ {[%clk 0:01:57.9]} 16... Kf8
{[%clk 0:01:06.2]} 17. Bf4 {[%clk 0:01:11.1]} 17... b4 {[%clk 0:00:51.6]} 18. c4
{[%clk 0:01:05]} 18... Qa5 {[%clk 0:00:36.1]} 19. Kb1 {[%clk 0:01:04.3]} 19...
h6 {[%clk 0:00:27.3]} 20. Ne5 {[%clk 0:01:03.7]} 20... b3 {[%clk 0:00:13]} 21.
a3 {[%clk 0:01:02.6]} 21... Qb6 {[%clk 0:00:11.5]} 22. Nxg6+ {[%clk 0:00:58.8]}
22... Nxg6 {[%clk 0:00:11.1]} 23. Bxg6 {[%clk 0:00:59.4]} 23... Bb7 {[%clk
0:00:09.6]} 24. Rh3 {[%clk 0:00:59.1]} 24... Bc6 {[%clk 0:00:09.3]} 25. Be5
{[%clk 0:00:54.5]} 25... Ke7 {[%clk 0:00:08.4]} 26. Nf5+ {[%clk 0:00:53.4]}
26... Kd8 {[%clk 0:00:06.4]} 27. Nxg7 {[%clk 0:00:53.2]} 27... Ng8 {[%clk
0:00:04]} 28. Nxe6+ {[%clk 0:00:52.8]} 28... Kc8 {[%clk 0:00:04.4]} 29. Bd4
{[%clk 0:00:51.9]} 29... Qa5 {[%clk 0:00:03.7]} 30. Bxh8 {[%clk 0:00:49.2]}
30... Ne7 {[%clk 0:00:02.5]} 31. Be4 {[%clk 0:00:48]} 31... Kb7 {[%clk
0:00:02.8]} 32. Rxd7+ {[%clk 0:00:46.5]} 32... Kb6 {[%clk 0:00:02.5]} 33. Bd4+
{[%clk 0:00:45.9]} 1-0

[Event "*** SCC Grand Prix: Titled Tuesday Blitz"]
[Site "Chess.com"]
[Date "2020.08.04"]
[Round "7"]
[White "MF1966Idrisov"]
[Black "Mikhail_Golubev"]
[Result "1/2-1/2"]
[WhiteElo "2361"]
[BlackElo "2594"]
[TimeControl "180+1"]
[EndTime "15:00:35 PDT"]
[Termination "Game drawn by repetition"]

1. Nf3 {[%clk 0:03:00.9]} 1... d6 {[%clk 0:02:59.5]} 2. d4 {[%clk 0:03:00.2]}
2... Nf6 {[%clk 0:02:58]} 3. b3 {[%clk 0:03:00.4]} 3... g6 {[%clk 0:02:57.3]} 4.
Bb2 {[%clk 0:03:00.7]} 4... Bg7 {[%clk 0:02:58]} 5. g3 {[%clk 0:03:01]} 5... O-O
{[%clk 0:02:58.5]} 6. Bg2 {[%clk 0:03:01.3]} 6... e5 {[%clk 0:02:51.5]} 7. dxe5
{[%clk 0:03:00.6]} 7... Nfd7 {[%clk 0:02:51.6]} 8. c4 {[%clk 0:03:00.6]} 8...
dxe5 {[%clk 0:02:51.5]} 9. Nfd2 {[%clk 0:02:58.6]} 9... Nc6 {[%clk 0:02:41.8]}
10. O-O {[%clk 0:02:58.1]} 10... f5 {[%clk 0:02:41.7]} 11. Bxc6 {[%clk 0:02:42]}
11... bxc6 {[%clk 0:02:40.4]} 12. f3 {[%clk 0:02:42.3]} 12... Nc5 {[%clk
0:02:21]} 13. Bc3 {[%clk 0:02:36.8]} 13... f4 {[%clk 0:02:06.9]} 14. Ne4 {[%clk
0:02:21.8]} 14... Nxe4 {[%clk 0:02:03.7]} 15. Qxd8 {[%clk 0:02:20.7]} 15... Rxd8
{[%clk 0:02:01]} 16. fxe4 {[%clk 0:02:20.7]} 16... Bg4 {[%clk 0:01:57.6]} 17.
gxf4 {[%clk 0:02:07]} 17... Bxe2 {[%clk 0:01:55.9]} 18. Re1 {[%clk 0:02:03.6]}
18... Bf3 {[%clk 0:01:54.8]} 19. Bxe5 {[%clk 0:02:03.1]} 19... Bxe5 {[%clk
0:01:50.3]} 20. fxe5 {[%clk 0:02:02.9]} 20... Rd3 {[%clk 0:01:44.4]} 21. Na3
{[%clk 0:02:01.7]} 21... Re8 {[%clk 0:01:40.4]} 22. c5 {[%clk 0:01:56.7]} 22...
Rxe5 {[%clk 0:01:39.7]} 23. Kf2 {[%clk 0:01:37.7]} 23... Rh5 {[%clk 0:01:38.8]}
24. Re3 {[%clk 0:01:33.3]} 24... Rxh2+ {[%clk 0:01:38.1]} 25. Kxf3 {[%clk
0:01:33.1]} 25... Rh3+ {[%clk 0:01:37.9]} 26. Kf4 {[%clk 0:01:30]} 26... Rdxe3
{[%clk 0:01:34.2]} 27. Nc4 {[%clk 0:01:29.8]} 27... Ref3+ {[%clk 0:01:32.5]} 28.
Ke5 {[%clk 0:01:27.9]} 28... Rh5+ {[%clk 0:01:31.1]} 29. Ke6 {[%clk 0:01:27.8]}
29... Rxc5 {[%clk 0:01:22.9]} 30. Rd1 {[%clk 0:01:23.4]} 30... g5 {[%clk
0:01:17.7]} 31. Rd7 {[%clk 0:01:10.3]} 31... Rf8 {[%clk 0:01:02.4]} 32. e5
{[%clk 0:00:58.7]} 32... g4 {[%clk 0:00:57.3]} 33. Ne3 {[%clk 0:00:51.9]} 33...
g3 {[%clk 0:00:49.2]} 34. Nf5 {[%clk 0:00:51]} 34... Re8+ {[%clk 0:00:39.2]} 35.
Kf6 {[%clk 0:00:51]} 35... Rcxe5 {[%clk 0:00:34.5]} 36. Nh6+ {[%clk 0:00:45.6]}
36... Kh8 {[%clk 0:00:34.5]} 37. Nf7+ {[%clk 0:00:45.6]} 37... Kg8 {[%clk
0:00:34.7]} 38. Nh6+ {[%clk 0:00:44.6]} 38... Kh8 {[%clk 0:00:34.3]} 39. Nf7+
{[%clk 0:00:41.4]} 39... Kg8 {[%clk 0:00:33.2]} 40. Nh6+ {[%clk 0:00:25.5]}
1/2-1/2

[Event "*** SCC Grand Prix: Titled Tuesday Blitz"]
[Site "Chess.com"]
[Date "2020.08.04"]
[Round "7"]
[White "Belka1989"]
[Black "rududuyk"]
[Result "0-1"]
[WhiteElo "2269"]
[BlackElo "2091"]
[TimeControl "180+1"]
[EndTime "15:00:35 PDT"]
[Termination "rududuyk won on time"]

1. d4 {[%clk 0:03:00.9]} 1... e6 {[%clk 0:02:59.9]} 2. Nf3 {[%clk 0:03:00.1]}
2... f5 {[%clk 0:03:00.4]} 3. Bf4 {[%clk 0:02:55.5]} 3... Nf6 {[%clk 0:03:00.1]}
4. e3 {[%clk 0:02:56.1]} 4... g6 {[%clk 0:02:59.4]} 5. Be2 {[%clk 0:02:53.5]}
5... Bg7 {[%clk 0:02:59.9]} 6. c3 {[%clk 0:02:51.5]} 6... O-O {[%clk 0:03:00.1]}
7. Nbd2 {[%clk 0:02:52.2]} 7... b6 {[%clk 0:03:00.4]} 8. O-O {[%clk 0:02:34.1]}
8... Bb7 {[%clk 0:03:00.5]} 9. h3 {[%clk 0:02:32.5]} 9... Kh8 {[%clk 0:02:51.2]}
10. Re1 {[%clk 0:02:13]} 10... d6 {[%clk 0:02:49]} 11. Qb3 {[%clk 0:02:07.4]}
11... Qe7 {[%clk 0:02:46.6]} 12. a4 {[%clk 0:02:02.1]} 12... a5 {[%clk
0:02:30.2]} 13. Rac1 {[%clk 0:01:56.4]} 13... Nbd7 {[%clk 0:02:28.1]} 14. Bh2
{[%clk 0:01:27.9]} 14... e5 {[%clk 0:02:25.5]} 15. dxe5 {[%clk 0:01:23.4]} 15...
dxe5 {[%clk 0:02:26.4]} 16. Rcd1 {[%clk 0:01:15.3]} 16... Nc5 {[%clk 0:02:18.2]}
17. Qc2 {[%clk 0:01:09.4]} 17... Nfe4 {[%clk 0:02:09.6]} 18. Nc4 {[%clk
0:00:59.7]} 18... Nd7 {[%clk 0:01:42.6]} 19. Bf1 {[%clk 0:00:22.4]} 19... Rae8
{[%clk 0:01:33.8]} 20. Na3 {[%clk 0:00:20.6]} 20... Bc6 {[%clk 0:00:58.2]} 21.
Bb5 {[%clk 0:00:19.7]} 21... Nb8 {[%clk 0:00:53.9]} 22. Bxc6 {[%clk 0:00:15.6]}
22... Nxc6 {[%clk 0:00:54.8]} 23. Nc4 {[%clk 0:00:10.2]} 23... Qc5 {[%clk
0:00:44.9]} 24. Ncd2 {[%clk 0:00:09.6]} 24... Nd6 {[%clk 0:00:39.6]} 25. Nb3
{[%clk 0:00:10]} 25... Nb4 {[%clk 0:00:35.7]} 26. Qd2 {[%clk 0:00:02.5]} 26...
Qc4 {[%clk 0:00:33.2]} 27. Na1 {[%clk 0:00:01.5]} 27... Na6 {[%clk 0:00:26.1]}
0-1

[Event "*** SCC Grand Prix: Titled Tuesday Blitz"]
[Site "Chess.com"]
[Date "2020.08.04"]
[Round "7"]
[White "PawnEatingZombie"]
[Black "JMatias"]
[Result "0-1"]
[WhiteElo "2240"]
[BlackElo "2405"]
[TimeControl "180+1"]
[EndTime "15:00:37 PDT"]
[Termination "JMatias won on time"]

1. d4 {[%clk 0:03:00.9]} 1... Nf6 {[%clk 0:02:58.9]} 2. c4 {[%clk 0:03:00.9]}
2... e6 {[%clk 0:02:58]} 3. Nc3 {[%clk 0:03:01.3]} 3... Bb4 {[%clk 0:02:57.2]}
4. Qc2 {[%clk 0:03:01.8]} 4... c5 {[%clk 0:02:56.4]} 5. dxc5 {[%clk 0:03:02.2]}
5... Bxc5 {[%clk 0:02:56]} 6. Nf3 {[%clk 0:03:01.4]} 6... Qb6 {[%clk 0:02:54.6]}
7. e3 {[%clk 0:03:01.1]} 7... Be7 {[%clk 0:02:54.2]} 8. Be2 {[%clk 0:02:58.4]}
8... a6 {[%clk 0:02:54.4]} 9. O-O {[%clk 0:02:57.1]} 9... Qc7 {[%clk 0:02:54.7]}
10. b3 {[%clk 0:02:57.6]} 10... b6 {[%clk 0:02:54.4]} 11. Bb2 {[%clk 0:02:56.7]}
11... Bb7 {[%clk 0:02:54.2]} 12. Rac1 {[%clk 0:02:46.9]} 12... d6 {[%clk
0:02:54.2]} 13. Nd4 {[%clk 0:02:44.6]} 13... Nbd7 {[%clk 0:02:53]} 14. f4 {[%clk
0:02:43.7]} 14... O-O {[%clk 0:02:50.1]} 15. g4 {[%clk 0:02:34.9]} 15... Nc5
{[%clk 0:02:19]} 16. g5 {[%clk 0:02:01.8]} 16... Nfe4 {[%clk 0:02:16.6]} 17. Bf3
{[%clk 0:01:58.6]} 17... Nxc3 {[%clk 0:02:15.9]} 18. Bxc3 {[%clk 0:01:55]} 18...
Bxf3 {[%clk 0:02:15.3]} 19. Rxf3 {[%clk 0:01:48.3]} 19... Qb7 {[%clk 0:02:15.4]}
20. Rff1 {[%clk 0:01:38.2]} 20... b5 {[%clk 0:02:12.9]} 21. Qg2 {[%clk
0:01:05.9]} 21... Qxg2+ {[%clk 0:02:08.2]} 22. Kxg2 {[%clk 0:01:05.8]} 22...
bxc4 {[%clk 0:02:09.1]} 23. bxc4 {[%clk 0:01:06.5]} 23... Rfc8 {[%clk
0:02:07.6]} 24. Rfd1 {[%clk 0:00:50.7]} 24... Rab8 {[%clk 0:02:05.4]} 25. Rb1
{[%clk 0:00:45.3]} 25... Ne4 {[%clk 0:02:03.4]} 26. Ba5 {[%clk 0:00:36.9]} 26...
Kf8 {[%clk 0:01:40.5]} 27. Rdc1 {[%clk 0:00:29.8]} 27... Ke8 {[%clk 0:01:34]}
28. Rb3 {[%clk 0:00:28.7]} 28... Nc5 {[%clk 0:01:26.8]} 29. Rxb8 {[%clk
0:00:19.4]} 29... Rxb8 {[%clk 0:01:24.7]} 30. Kf3 {[%clk 0:00:13.5]} 30... Rb2
{[%clk 0:01:18.1]} 31. Rc2 {[%clk 0:00:13.6]} 31... Rb1 {[%clk 0:01:13.6]} 32.
Bd2 {[%clk 0:00:08.5]} 32... Kd7 {[%clk 0:01:12]} 33. Bc3 {[%clk 0:00:08.4]}
33... f6 {[%clk 0:01:03]} 34. h4 {[%clk 0:00:06.8]} 34... f5 {[%clk 0:01:02.2]}
35. Rb2 {[%clk 0:00:06]} 35... Rc1 {[%clk 0:00:59.7]} 36. Bb4 {[%clk 0:00:03.6]}
36... Ne4 {[%clk 0:00:50]} 0-1

[Event "*** SCC Grand Prix: Titled Tuesday Blitz"]
[Site "Chess.com"]
[Date "2020.08.04"]
[Round "7"]
[White "German_Bazeev"]
[Black "maxip32"]
[Result "1-0"]
[WhiteElo "2748"]
[BlackElo "2481"]
[TimeControl "180+1"]
[EndTime "15:00:40 PDT"]
[Termination "German_Bazeev won by checkmate"]

1. d4 {[%clk 0:03:00.9]} 1... Nf6 {[%clk 0:02:59.5]} 2. c4 {[%clk 0:03:00.9]}
2... g6 {[%clk 0:02:59.9]} 3. Nc3 {[%clk 0:03:01.2]} 3... Bg7 {[%clk 0:03:00.8]}
4. e4 {[%clk 0:03:00.6]} 4... d6 {[%clk 0:03:01.3]} 5. Be2 {[%clk 0:03:01.2]}
5... O-O {[%clk 0:03:01.2]} 6. Be3 {[%clk 0:03:01.8]} 6... Na6 {[%clk
0:02:59.3]} 7. g4 {[%clk 0:03:01.1]} 7... c5 {[%clk 0:02:52.4]} 8. g5 {[%clk
0:02:57.5]} 8... Nd7 {[%clk 0:02:50]} 9. d5 {[%clk 0:02:56.7]} 9... Nb6 {[%clk
0:01:48.7]} 10. h4 {[%clk 0:02:46.7]} 10... e6 {[%clk 0:01:47.5]} 11. Nh3 {[%clk
0:01:57]} 11... exd5 {[%clk 0:01:47.1]} 12. cxd5 {[%clk 0:01:45.5]} 12... Nc7
{[%clk 0:01:39.8]} 13. Nf4 {[%clk 0:01:44]} 13... Nd7 {[%clk 0:01:36.7]} 14. h5
{[%clk 0:01:38.3]} 14... b5 {[%clk 0:01:36]} 15. hxg6 {[%clk 0:01:32.9]} 15...
hxg6 {[%clk 0:01:34.6]} 16. f3 {[%clk 0:00:54.9]} 16... b4 {[%clk 0:01:32.6]}
17. Na4 {[%clk 0:00:54.5]} 17... Rb8 {[%clk 0:01:05.6]} 18. Qd2 {[%clk
0:00:53.7]} 18... Nb5 {[%clk 0:01:04.1]} 19. Bxb5 {[%clk 0:00:51.8]} 19... Rxb5
{[%clk 0:01:03.2]} 20. Qh2 {[%clk 0:00:52.4]} 20... Re8 {[%clk 0:01:00.1]} 21.
O-O-O {[%clk 0:00:44]} 21... Ra5 {[%clk 0:00:55.4]} 22. Nxg6 {[%clk 0:00:31.4]}
22... fxg6 {[%clk 0:00:47.5]} 23. Qxd6 {[%clk 0:00:31.6]} 23... Rxa4 {[%clk
0:00:40.5]} 24. Qxg6 {[%clk 0:00:31.2]} 24... Nf8 {[%clk 0:00:36.9]} 25. Rh8+
{[%clk 0:00:18]} 25... Kxh8 {[%clk 0:00:32.1]} 26. Qf7 {[%clk 0:00:18.6]} 26...
Qd7 {[%clk 0:00:19.9]} 27. Rh1+ {[%clk 0:00:17.2]} 27... Nh7 {[%clk 0:00:20]}
28. Qh5 {[%clk 0:00:11]} 28... Rxa2 {[%clk 0:00:17.4]} 29. Qxh7# {[%clk
0:00:08.9]} 1-0

[Event "*** SCC Grand Prix: Titled Tuesday Blitz"]
[Site "Chess.com"]
[Date "2020.08.04"]
[Round "7"]
[White "Bastiandash"]
[Black "bratkoo"]
[Result "0-1"]
[WhiteElo "2317"]
[BlackElo "2508"]
[TimeControl "180+1"]
[EndTime "15:00:42 PDT"]
[Termination "bratkoo won on time"]

1. e4 {[%clk 0:03:00.9]} 1... d6 {[%clk 0:02:56.9]} 2. d4 {[%clk 0:02:59.2]}
2... g6 {[%clk 0:02:57.4]} 3. Nf3 {[%clk 0:02:55.9]} 3... Bg7 {[%clk 0:02:57.7]}
4. h3 {[%clk 0:02:55.2]} 4... a6 {[%clk 0:02:57.9]} 5. Nc3 {[%clk 0:02:51.8]}
5... b5 {[%clk 0:02:57.7]} 6. Be3 {[%clk 0:02:51.4]} 6... Bb7 {[%clk 0:02:57.5]}
7. Bd3 {[%clk 0:02:49.4]} 7... Nd7 {[%clk 0:02:56.8]} 8. Qd2 {[%clk 0:02:47.5]}
8... c5 {[%clk 0:02:57.1]} 9. Rd1 {[%clk 0:02:36.7]} 9... c4 {[%clk 0:02:34.3]}
10. Be2 {[%clk 0:02:35.6]} 10... Ngf6 {[%clk 0:02:34.5]} 11. e5 {[%clk
0:02:30.7]} 11... Nd5 {[%clk 0:02:31.1]} 12. Nxd5 {[%clk 0:02:18.4]} 12... Bxd5
{[%clk 0:02:30.4]} 13. Bh6 {[%clk 0:02:17.4]} 13... O-O {[%clk 0:02:06.2]} 14.
Bxg7 {[%clk 0:02:05.9]} 14... Kxg7 {[%clk 0:02:07.1]} 15. Qf4 {[%clk 0:02:05]}
15... Qb6 {[%clk 0:01:59.8]} 16. h4 {[%clk 0:01:58.1]} 16... f6 {[%clk
0:01:41.7]} 17. Qg4 {[%clk 0:01:29.5]} 17... Rad8 {[%clk 0:01:19.7]} 18. h5
{[%clk 0:01:09.5]} 18... dxe5 {[%clk 0:00:59.4]} 19. hxg6 {[%clk 0:00:50.1]}
19... hxg6 {[%clk 0:00:57.5]} 20. Nh4 {[%clk 0:00:44.7]} 20... f5 {[%clk
0:00:54.5]} 21. Nxf5+ {[%clk 0:00:10.1]} 21... Rxf5 {[%clk 0:00:52.6]} 22. Qh4
{[%clk 0:00:10.7]} 22... Nf6 {[%clk 0:00:43.9]} 23. Qh6+ {[%clk 0:00:10]} 23...
Kf7 {[%clk 0:00:43.8]} 24. dxe5 {[%clk 0:00:01.9]} 24... Qxf2+ {[%clk
0:00:42.2]} 25. Kd2 {[%clk 0:00:01.7]} 25... Rxe5 {[%clk 0:00:37.3]} 26. Kc1
{[%clk 0:00:01.4]} 26... Qxe2 {[%clk 0:00:34.3]} 27. Kb1 {[%clk 0:00:01.3]}
27... Bxg2 {[%clk 0:00:24.3]} 28. Rxd8 {[%clk 0:00:02.2]} 28... Bxh1 {[%clk
0:00:23.4]} 0-1

[Event "*** SCC Grand Prix: Titled Tuesday Blitz"]
[Site "Chess.com"]
[Date "2020.08.04"]
[Round "7"]
[White "ailime26"]
[Black "Batsai"]
[Result "0-1"]
[WhiteElo "1897"]
[BlackElo "2339"]
[TimeControl "180+1"]
[EndTime "15:00:44 PDT"]
[Termination "Batsai won by resignation"]

1. e4 {[%clk 0:03:00.9]} 1... c6 {[%clk 0:02:18.2]} 2. Nf3 {[%clk 0:02:57.7]}
2... g6 {[%clk 0:02:19.1]} 3. Nc3 {[%clk 0:02:37.2]} 3... Bg7 {[%clk 0:02:19.4]}
4. d4 {[%clk 0:02:11.2]} 4... d6 {[%clk 0:02:15.5]} 5. Bd3 {[%clk 0:02:10.4]}
5... Nf6 {[%clk 0:02:14.8]} 6. O-O {[%clk 0:02:09.8]} 6... O-O {[%clk
0:02:15.3]} 7. Bg5 {[%clk 0:02:06.7]} 7... Bg4 {[%clk 0:02:15.4]} 8. h3 {[%clk
0:02:05.5]} 8... Bxf3 {[%clk 0:02:14.8]} 9. Qxf3 {[%clk 0:02:03.4]} 9... Nbd7
{[%clk 0:02:15.3]} 10. Qe3 {[%clk 0:02:02]} 10... e5 {[%clk 0:02:11.4]} 11. Ne2
{[%clk 0:01:59.4]} 11... Qa5 {[%clk 0:02:09.2]} 12. Bh6 {[%clk 0:01:55.7]} 12...
Rae8 {[%clk 0:02:02.9]} 13. c3 {[%clk 0:01:40.7]} 13... exd4 {[%clk 0:01:56.1]}
14. Nxd4 {[%clk 0:01:35.2]} 14... Nc5 {[%clk 0:01:52.3]} 15. b4 {[%clk
0:01:27.2]} 15... Bxh6 {[%clk 0:01:34.5]} 16. Qxh6 {[%clk 0:01:21.8]} 16... Qd8
{[%clk 0:01:34.8]} 17. bxc5 {[%clk 0:01:10.9]} 17... dxc5 {[%clk 0:01:35.7]} 18.
Nf3 {[%clk 0:01:04.1]} 18... Qxd3 {[%clk 0:01:33.3]} 19. e5 {[%clk 0:01:03.3]}
19... Ne4 {[%clk 0:01:22.1]} 20. Rfe1 {[%clk 0:00:51.5]} 20... f5 {[%clk
0:01:15]} 21. exf6 {[%clk 0:00:39.4]} 21... Nxf6 {[%clk 0:00:55.6]} 22. Ne5
{[%clk 0:00:11.3]} 22... Qxc3 {[%clk 0:00:51.9]} 23. Rac1 {[%clk 0:00:06.4]}
23... Qa5 {[%clk 0:00:40.3]} 24. Re3 {[%clk 0:00:03.7]} 24... Qc7 {[%clk
0:00:38.5]} 25. Rce1 {[%clk 0:00:03.1]} 25... Qg7 {[%clk 0:00:33.9]} 26. Qg5
{[%clk 0:00:03]} 26... Nd5 {[%clk 0:00:32.2]} 27. Qg3 {[%clk 0:00:02.7]} 27...
Nxe3 {[%clk 0:00:31.7]} 28. Rxe3 {[%clk 0:00:03]} 28... Rf5 {[%clk 0:00:31.7]}
29. Ng4 {[%clk 0:00:02.5]} 29... Rxe3 {[%clk 0:00:31.4]} 30. Nxe3 {[%clk
0:00:03.4]} 30... Rf8 {[%clk 0:00:31.1]} 31. Qb8 {[%clk 0:00:03.8]} 31... Rxb8
{[%clk 0:00:30.2]} 0-1